fUSD/lending_fUSD_20240613
["ID","MTS","AMOUNT","RATE_DAILY","PERIOD"]
[329406777,1718320411296,-500.0,0.00026301,3]
[329406778,1718320411308,-500.0,0.00026301,3]
[329406779,1718320411332,-500.0,0.00026301,3]
[329406780,1718320411343,-500.0,0.00026301,3]
[329406781,1718320411366,-500.0,0.00026301,3]
[329406782,1718320411404,-500.0,0.00026301,3]
[329406783,1718320411448,-500.0,0.00026301,3]
[329406784,1718320411470,-642.3349277,0.00026301,3]
[329406785,1718320411508,-500.0,0.00026301,3]
[329406786,1718320411526,-187.7241416,0.00026301,3]
[329406787,1718320411538,-500.0,0.00026301,3]
[329406788,1718320411550,-689.99,0.00026301,3]
[329406789,1718320411562,-842.55,0.00026301,3]
[329406790,1718320411574,-500.0,0.00026301,3]
[329406791,1718320411586,-566.43945879,0.00026301,3]
[329406792,1718320411599,-500.0,0.00026301,3]
[329406793,1718320411610,-731.56,0.00026301,3]
[329406794,1718320411621,-706.63,0.00026301,3]
[329406795,1718320411633,-533.35,0.00026301,3]
[329406796,1718320411646,-500.0,0.00026301,3]
[329406797,1718320411665,-687.47,0.00026301,3]
[329406798,1718320411676,-501.64,0.00026301,3]
[329406799,1718320411698,-500.0,0.00026301,3]
[329406800,1718320411725,-500.0,0.00026301,3]
[329406801,1718320411964,-500.0,0.00026301,3]
[329406802,1718320411990,-834.82,0.00026301,3]
[329406803,1718320412028,-500.0,0.00026301,3]
[329406804,1718320412057,-500.0,0.00026301,3]
[329406805,1718320412083,-1134.66,0.00026301,3]
[329406806,1718320412100,-510.75066197,0.00026301,3]
[329406807,1718320412121,-500.0,0.00026301,3]
[329406808,1718320412144,-500.0,0.00026301,3]
[329406809,1718320412155,-826.72,0.00026301,3]
[329406810,1718320412170,-500.0,0.00026301,3]
[329406811,1718320412180,-500.0,0.00026301,3]
[329406812,1718320412191,-500.0,0.00026301,3]
[329406813,1718320412202,-624.06,0.00026301,3]
[329406814,1718320412214,-500.0,0.00026301,3]
[329406815,1718320412252,-500.0,0.00026301,3]
[329406816,1718320412300,-818.04,0.00026301,3]
[329406817,1718320412311,-500.0,0.00026301,3]
[329406818,1718320412344,-480.99782373,0.00026301,3]
[329406819,1718320412360,-500.0,0.00026301,3]
[329406820,1718320412398,-500.0,0.00026301,3]
[329406821,1718320412424,-500.0,0.00026301,3]
[329406822,1718320412469,-228.27,0.00026301,3]
[329406823,1718320412481,-500.0,0.00026301,3]
[329406824,1718320412514,-471.16,0.00026301,3]
[329406825,1718320412540,-500.0,0.00026301,3]
[329406826,1718320412580,-500.0,0.00026301,3]
[329406827,1718320412600,-544.56,0.00026301,3]
[329406828,1718320412612,-500.0,0.00026301,3]
[329406829,1718320412627,-500.0,0.00026301,3]
[329406830,1718320412668,-500.0,0.00026301,3]
[329406831,1718320412681,-530.04059541,0.00026301,3]
[329406832,1718320412729,-500.0,0.00026301,3]
[329406833,1718320412741,-941.51,0.00026301,3]
[329406834,1718320412768,-513.09,0.00026301,3]
[329406835,1718320412786,-548.6,0.00026301,3]
[329406836,1718320412817,-752.51,0.00026301,3]
[329406837,1718320412836,-500.0,0.00026301,3]
[329406838,1718320412852,-500.0,0.00026301,3]
[329406839,1718320412876,-758.83,0.00026301,3]
[329406840,1718320412890,-692.24,0.00026301,3]
[329406841,1718320412916,-500.0,0.00026301,3]
[329406842,1718320412949,-500.0,0.00026301,3]
[329406843,1718320412962,-321.686009,0.00026301,7]
[329406844,1718320413012,-517.9,0.00026301,3]
[329406845,1718320413028,-677.98,0.00026301,3]
[329406846,1718320413052,-500.0,0.00026301,3]
[329406847,1718320413177,-500.0,0.00026301,3]
[329406848,1718320413192,-500.0,0.00026301,3]
[329406849,1718320413236,-819.7,0.00026301,3]
[329406850,1718320413257,-500.0,0.00026301,3]
[329406851,1718320413272,-200.39496181,0.00026301,3]
[329406852,1718320413301,-500.0,0.00026301,3]
[329406853,1718320413315,-601.07,0.00026301,3]
[329406854,1718320413337,-500.0,0.00026301,3]
[329406855,1718320413352,-500.0,0.00026301,3]
[329406856,1718320413373,-969.2,0.00026301,3]
[329406857,1718320413386,-4171.67,0.00026301,3]
[329406858,1718320413412,-500.0,0.00026301,3]
[329406859,1718320413425,-500.0,0.00026301,3]
[329406860,1718320413441,-403.0,0.00026301,3]
[329406861,1718320413454,-500.0,0.00026301,3]
[329406862,1718320413467,-500.0,0.00026301,3]
[329406863,1718320413482,-500.0,0.00026301,3]
[329406864,1718320413517,-529.42,0.00026301,3]
[329406865,1718320413537,-500.0,0.00026301,3]
[329406866,1718320413553,-500.0,0.00026301,3]
[329406867,1718320413565,-5019.37,0.00026301,3]
[329406868,1718320413583,-500.0,0.00026301,3]
[329406869,1718320413596,-500.0,0.00026301,3]
[329406870,1718320413610,-944.06,0.00026301,3]
[329406871,1718320413624,-500.0,0.00026301,3]
[329406872,1718320413647,-151.0,0.00026301,7]
[329406873,1718320413664,-577.87,0.00026301,3]
[329406874,1718320413676,-500.0,0.00026301,3]
[329406875,1718320413691,-500.0,0.00026301,3]
[329406876,1718320413717,-1591.45,0.00026301,3]
[329406877,1718320413744,-500.0,0.00026301,3]
[329406878,1718320413758,-500.0,0.00026301,3]
[329406879,1718320413773,-500.0,0.00026301,3]
[329406880,1718320413784,-502.52,0.00026301,3]
[329406881,1718320413824,-500.0,0.00026301,3]
[329406882,1718320413844,-500.0,0.00026301,3]
[329406883,1718320413855,-500.0,0.00026301,3]
[329406884,1718320413880,-156.754014,0.00026301,7]
[329406885,1718320413892,-234.90928144,0.00026301,3]
[329406886,1718320413919,-500.0,0.00026301,3]
[329406887,1718320413945,-155.28,0.00026301,3]
[329406888,1718320413957,-500.0,0.00026301,3]
[329406889,1718320413974,-1234.57,0.00026301,3]
[329406890,1718320413986,-156.754022,0.00026301,7]
[329406891,1718320414005,-930.16,0.00026301,3]
[329406892,1718320414041,-225.17,0.00026301,3]
[329406893,1718320414068,-500.0,0.00026301,3]
[329406894,1718320414094,-548.67612981,0.00026301,3]
[329406895,1718320414120,-1971.12,0.00026301,3]
[329406896,1718320414147,-360.81493286,0.00026301,3]
[329406897,1718320414160,-610.48,0.00026301,3]
[329406898,1718320414179,-661.13,0.00026301,3]
[329406899,1718320414195,-500.0,0.00026301,3]
[329406900,1718320414208,-500.0,0.00026301,3]
[329406901,1718320414238,-963.44,0.00026301,3]
[329406902,1718320414253,-533.87,0.00026301,3]
[329406903,1718320414265,-1022.84,0.00026301,3]
[329406904,1718320414293,-1126.87,0.00026301,3]
[329406905,1718320414313,-821.07,0.00026301,3]
[329406906,1718320414328,-500.0,0.00026301,3]
[329406907,1718320414384,-500.0,0.00026301,3]
[329406908,1718320414395,-500.0,0.00026301,3]
[329406909,1718320414440,-3363.13,0.00026301,3]
[329406910,1718320414452,-500.0,0.00026301,3]
[329406911,1718320414476,-500.0,0.00026301,3]
[329406912,1718320414504,-1220.15,0.00026301,3]
[329406913,1718320414516,-283.47498926,0.00026301,3]
[329406914,1718320414747,-1050.24683318,0.00026301,3]
[329406915,1718320414775,-1027.27817756,0.00026301,3]
[329406916,1718320414795,-313.46,0.00026301,3]
[329406917,1718320414820,-500.0,0.00026301,3]
[329406918,1718320414861,-32.08988244,0.00026301,3]
[329406922,1718321227202,-155.0,0.00013885,2]
[329406923,1718321227235,-95.0730641,0.00013886,2]
[329406940,1718321435042,-391.85679535,0.00013885,2]
[329406941,1718321435061,-2279.00409936,0.00013885,2]
[329406942,1718321435082,-792.70345218,0.00013886,2]
[329406943,1718321435169,-2688.39276045,0.0001389,2]
[329406944,1718321435261,-542.2859949,0.00013898,2]
[329406945,1718321435281,-155.522898,0.00013899,2]
[329406946,1718321435337,-51632.0729,0.000139,2]
[329406947,1718321435364,-10017.0348,0.000139,2]
[329406948,1718321435375,-174.7413,0.000139,2]
[329406949,1718321435386,-1194.554,0.00017524,2]
[329406950,1718321435424,-437.0,0.00017524,2]
[329406951,1718321435462,-3176.0,0.00017524,2]
[329406952,1718321435511,-1830.0,0.00017524,2]
[329406953,1718321435544,-1269.0,0.00017524,2]
[329406954,1718321435563,-358.0,0.00017524,2]
[329406955,1718321435596,-10355.99,0.00019452,2]
[329406956,1718321435620,-6267.29487457,0.0002,2]
[329406957,1718321435638,-155.0,0.0002,2]
[329406958,1718321435679,-226.76270483,0.000201,2]
[329406959,1718321435691,-454.93,0.00020179,2]
[329406960,1718321435716,-1250.0,0.00021,2]
[329406961,1718321435772,-250.0,0.00021066,2]
[329406962,1718321435817,-441.46,0.00021618,3]
[329406963,1718321435837,-23447.17,0.00021727,2]
[329406964,1718321435849,-417.8,0.00021756,2]
[329406965,1718321435860,-1000.0,0.000218,2]
[329406966,1718321435871,-1000.0,0.00021812,2]
[329406967,1718321435894,-250.0,0.00021918,2]
[329406968,1718321435909,-599.94,0.00022196,2]
[329406969,1718321435920,-454.93,0.00022443,2]
[329406970,1718321435935,-167.68,0.00022808,2]
[329406971,1718321435957,-2104.268,0.00022818,2]
[329406972,1718321435998,-155.0,0.00023,2]
[329406973,1718321436009,-2952.0,0.000233,3]
[329406974,1718321436024,-634.0,0.000233,3]
[329406975,1718321436039,-318.14581888,0.00024009,2]
[329406976,1718321436055,-60951.484,0.00024009,2]
[329406977,1718321436066,-18757.6951,0.00024009,2]
[329406978,1718321436080,-155.7899877,0.00024108,2]
[329406979,1718321436097,-4391.40362579,0.00024108,2]
[329406980,1718321436126,-500.0,0.00024109,2]
[329406981,1718321436180,-500.0,0.00024109,2]
[329406982,1718321436204,-500.0,0.00024109,2]
[329406983,1718321436264,-500.0,0.00024109,2]
[329406984,1718321436348,-500.0,0.00024109,2]
[329406985,1718321436376,-517.03,0.00024109,2]
[329406986,1718321436422,-500.0,0.00024109,2]
[329406987,1718321436433,-540.01,0.00024109,2]
[329406988,1718321436443,-500.0,0.00024109,2]
[329406989,1718321436465,-500.0,0.00024109,2]
[329406990,1718321436480,-500.0,0.00024109,2]
[329406991,1718321436501,-500.0,0.00024109,2]
[329406993,1718321436573,-588.44,0.00024109,2]
[329406994,1718321436612,-500.0,0.00024109,2]
[329406995,1718321436625,-500.0,0.00024109,2]
[329406996,1718321436641,-500.0,0.00024109,2]
[329406997,1718321436693,-517.77915366,0.00024109,2]
[329406998,1718321436733,-500.0,0.00024109,2]
[329406999,1718321436744,-500.0,0.00024109,2]
[329407000,1718321436760,-500.0,0.00024109,2]
[329407001,1718321436784,-402.8479513,0.00024109,2]
[329407002,1718321436800,-500.0,0.00024109,2]
[329407003,1718321436833,-500.0,0.00024109,2]
[329407004,1718321436847,-500.0,0.00024109,2]
[329407005,1718321436858,-500.0,0.00024109,2]
[329407006,1718321436869,-515.28386827,0.00024109,2]
[329407007,1718321436892,-500.0,0.00024109,2]
[329407008,1718321436903,-500.0,0.00024109,2]
[329407009,1718321436919,-500.0,0.00024109,2]
[329407010,1718321436930,-157.91448212,0.00024109,2]
[329407011,1718321436940,-500.0,0.00024109,2]
[329407012,1718321436952,-527.4025217,0.00024109,2]
[329407013,1718321436964,-500.0,0.00024109,2]
[329407014,1718321436980,-500.0,0.00024109,2]
[329407015,1718321437002,-500.0,0.00024109,2]
[329407016,1718321437059,-500.0,0.00024109,2]
[329407017,1718321437077,-500.0,0.00024109,2]
[329407018,1718321437112,-500.0,0.00024109,2]
[329407019,1718321437133,-519.28,0.00024109,2]
[329407020,1718321437153,-500.0,0.00024109,2]
[329407021,1718321437232,-500.0,0.00024109,2]
[329407022,1718321437246,-500.0,0.00024109,2]
[329407023,1718321437325,-500.0,0.00024109,2]
[329407024,1718321437337,-500.0,0.00024109,2]
[329407025,1718321437350,-500.0,0.00024109,2]
[329407026,1718321437361,-500.0,0.00024109,2]
[329407027,1718321437384,-500.0,0.00024109,2]
[329407028,1718321437401,-445.4495633,0.00024109,2]
[329407029,1718321437416,-500.0,0.00024109,2]
[329407030,1718321437428,-500.0,0.00024109,2]
[329407031,1718321437453,-500.0,0.00024109,2]
[329407032,1718321437467,-500.0,0.00024109,2]
[329407033,1718321437478,-500.0,0.00024109,2]
[329407034,1718321437544,-553.87,0.00024109,2]
[329407035,1718321437555,-500.0,0.00024109,2]
[329407036,1718321437600,-500.0,0.00024109,2]
[329407037,1718321437660,-500.0,0.00024109,2]
[329407038,1718321437672,-500.0,0.00024109,2]
[329407039,1718321437691,-500.0,0.00024109,2]
[329407040,1718321437709,-524.07,0.00024109,2]
[329407041,1718321437737,-500.0,0.00024109,2]
[329407042,1718321437756,-500.0,0.00024109,2]
[329407043,1718321437783,-500.0,0.00024109,2]
[329407044,1718321437815,-500.0,0.00024109,2]
[329407045,1718321437864,-500.0,0.00024109,2]
[329407046,1718321437876,-500.0,0.00024109,2]
[329407047,1718321437888,-500.0,0.00024109,2]
[329407048,1718321437899,-500.0,0.00024109,2]
[329407049,1718321437910,-500.0,0.00024109,2]
[329407050,1718321437934,-623.62815555,0.00024109,2]
[329407051,1718321437944,-500.0,0.00024109,2]
[329407052,1718321437966,-500.0,0.00024109,2]
[329407053,1718321437979,-500.0,0.00024109,2]
[329407054,1718321437990,-500.0,0.00024109,2]
[329407055,1718321438010,-500.0,0.00024109,2]
[329407056,1718321438034,-500.0,0.00024109,2]
[329407057,1718321438049,-500.0,0.00024109,2]
[329407058,1718321438084,-500.0,0.00024109,2]
[329407059,1718321438154,-500.0,0.00024109,2]
[329407060,1718321438195,-500.0,0.00024109,2]
[329407061,1718321438209,-500.0,0.00024109,2]
[329407062,1718321438254,-500.0,0.00024109,2]
[329407063,1718321438291,-654.2,0.00024109,2]
[329407064,1718321438305,-500.0,0.00024109,2]
[329407065,1718321438325,-500.0,0.00024109,2]
[329407066,1718321438336,-500.0,0.00024109,2]
[329407067,1718321438361,-500.0,0.00024109,2]
[329407068,1718321438417,-500.0,0.00024109,2]
[329407069,1718321438429,-500.0,0.00024109,2]
[329407070,1718321438442,-500.0,0.00024109,2]
[329407071,1718321438493,-500.0,0.00024109,2]
[329407072,1718321438537,-500.0,0.00024109,2]
[329407073,1718321438550,-533.97508717,0.00024109,2]
[329407074,1718321438562,-511.23,0.00024109,2]
[329407075,1718321438580,-500.0,0.00024109,2]
[329407076,1718321438611,-500.0,0.00024109,2]
[329407077,1718321438639,-500.0,0.00024109,2]
[329407078,1718321438651,-500.0,0.00024109,2]
[329407079,1718321438668,-500.0,0.00024109,2]
[329407080,1718321438684,-500.0,0.00024109,2]
[329407081,1718321438712,-500.0,0.00024109,2]
[329407082,1718321438748,-526.6,0.00024109,2]
[329407083,1718321438779,-500.0,0.00024109,2]
[329407084,1718321438790,-500.0,0.00024109,2]
[329407085,1718321438831,-500.0,0.00024109,2]
[329407086,1718321438871,-500.0,0.00024109,2]
[329407087,1718321438897,-500.0,0.00024109,2]
[329407088,1718321438936,-500.0,0.00024109,2]
[329407089,1718321438948,-503.26447539,0.00024109,2]
[329407090,1718321438971,-536.47,0.00024109,2]
[329407091,1718321438995,-500.0,0.00024109,2]
[329407092,1718321439022,-500.0,0.00024109,2]
[329407093,1718321439034,-500.0,0.00024109,2]
[329407094,1718321439047,-500.0,0.00024109,2]
[329407095,1718321439160,-586.73,0.00024109,2]
[329407096,1718321439198,-500.0,0.00024109,2]
[329407097,1718321439267,-554.75,0.00024109,2]
[329407098,1718321439291,-500.0,0.00024109,2]
[329407099,1718321439325,-500.0,0.00024109,2]
[329407100,1718321439353,-500.0,0.00024109,2]
[329407101,1718321439383,-500.0,0.00024109,2]
[329407103,1718321439415,-500.0,0.00024109,2]
[329407105,1718321439452,-500.0,0.00024109,2]
[329407106,1718321439467,-500.0,0.00024109,2]
[329407109,1718321439497,-500.0,0.00024109,2]
[329407111,1718321439546,-797.08,0.00024109,2]
[329407112,1718321439562,-500.0,0.00024109,2]
[329407113,1718321439573,-500.0,0.00024109,2]
[329407114,1718321439632,-500.0,0.00024109,2]
[329407115,1718321439688,-836.23,0.00024109,2]
[329407116,1718321439724,-500.0,0.00024109,2]
[329407117,1718321439762,-500.0,0.00024109,2]
[329407118,1718321439805,-500.0,0.00024109,2]
[329407119,1718321439855,-500.0,0.00024109,2]
[329407120,1718321439880,-500.0,0.00024109,2]
[329407121,1718321439896,-419.16931666,0.00024109,2]
[329407122,1718321439926,-500.0,0.00024109,2]
[329407123,1718321439953,-500.0,0.00024109,2]
[329407124,1718321439965,-500.0,0.00024109,2]
[329407125,1718321440000,-500.0,0.00024109,2]
[329407126,1718321440015,-500.0,0.00024109,2]
[329407127,1718321440030,-500.0,0.00024109,2]
[329407128,1718321440055,-500.0,0.00024109,2]
[329407129,1718321440074,-500.0,0.00024109,2]
[329407130,1718321440086,-500.0,0.00024109,2]
[329407131,1718321440113,-500.0,0.00024109,2]
[329407132,1718321440157,-548.2,0.00024109,2]
[329407133,1718321440178,-425.46925038,0.00024109,2]
[329407134,1718321440209,-417.85662182,0.00024109,2]
[329407135,1718321440225,-228.50523058,0.00024109,2]
[329407136,1718321440258,-500.0,0.00024109,2]
[329407137,1718321440322,-511.28,0.00024109,2]
[329407138,1718321440341,-238.11,0.00024109,2]
[329407139,1718321440380,-605.75,0.00024109,2]
[329407140,1718321440445,-555.25,0.00024109,2]
[329407141,1718321440463,-500.0,0.00024109,2]
[329407142,1718321440496,-500.0,0.00024109,2]
[329407143,1718321440523,-500.0,0.00024109,2]
[329407144,1718321440554,-500.0,0.00024109,2]
[329407145,1718321440578,-500.0,0.00024109,2]
[329407146,1718321440604,-500.0,0.00024109,2]
[329407147,1718321440621,-674.85,0.00024109,2]
[329407148,1718321440664,-500.0,0.00024109,2]
[329407149,1718321440689,-500.0,0.00024109,2]
[329407150,1718321440702,-500.0,0.00024109,2]
[329407151,1718321440725,-500.0,0.00024109,2]
[329407152,1718321440754,-500.0,0.00024109,2]
[329407153,1718321440777,-500.0,0.00024109,2]
[329407154,1718321440800,-500.0,0.00024109,2]
[329407155,1718321440846,-500.0,0.00024109,2]
[329407156,1718321440866,-500.0,0.00024109,2]
[329407157,1718321440878,-500.0,0.00024109,2]
[329407158,1718321440908,-500.0,0.00024109,2]
[329407159,1718321440944,-500.0,0.00024109,2]
[329407160,1718321441007,-500.0,0.00024109,2]
[329407161,1718321441021,-500.0,0.00024109,2]
[329407162,1718321441034,-500.0,0.00024109,2]
[329407164,1718321441057,-500.0,0.00024109,2]
[329407165,1718321441100,-500.0,0.00024109,2]
[329407166,1718321441156,-500.0,0.00024109,2]
[329407167,1718321441225,-709.16,0.00024109,2]
[329407168,1718321441250,-500.0,0.00024109,2]
[329407169,1718321441278,-500.0,0.00024109,2]
[329407170,1718321441325,-685.25,0.00024109,2]
[329407171,1718321441343,-500.0,0.00024109,2]
[329407172,1718321441359,-500.0,0.00024109,2]
[329407173,1718321441376,-205.71,0.00024109,2]
[329407174,1718321441388,-500.0,0.00024109,2]
[329407175,1718321441400,-500.0,0.00024109,2]
[329407176,1718321441430,-531.83,0.00024109,2]
[329407177,1718321441446,-500.0,0.00024109,2]
[329407178,1718321441460,-500.0,0.00024109,2]
[329407179,1718321441472,-500.0,0.00024109,2]
[329407180,1718321441485,-500.0,0.00024109,2]
[329407181,1718321441497,-530.89,0.00024109,2]
[329407182,1718321441524,-1082.78,0.00024109,2]
[329407183,1718321441536,-500.0,0.00024109,2]
[329407184,1718321441570,-514.88388646,0.00024109,2]
[329407185,1718321441590,-500.0,0.00024109,2]
[329407186,1718321441605,-913.72,0.00024109,2]
[329407189,1718321441626,-500.0,0.00024109,2]
[329407193,1718321441676,-500.0,0.00024109,2]
[329407195,1718321441688,-603.1,0.00024109,2]
[329407197,1718321441720,-500.0,0.00024109,2]
[329407199,1718321441739,-866.46,0.00024109,2]
[329407201,1718321441775,-500.0,0.00024109,2]
[329407202,1718321441787,-500.0,0.00024109,2]
[329407203,1718321441807,-500.0,0.00024109,2]
[329407205,1718321441820,-500.0,0.00024109,2]
[329407208,1718321441843,-500.0,0.00024109,2]
[329407210,1718321441871,-500.0,0.00024109,2]
[329407212,1718321441893,-500.0,0.00024109,2]
[329407215,1718321441916,-500.0,0.00024109,2]
[329407216,1718321441944,-500.0,0.00024109,2]
[329407217,1718321441981,-500.0,0.00024109,2]
[329407218,1718321442017,-500.0,0.00024109,2]
[329407219,1718321442042,-500.0,0.00024109,2]
[329407220,1718321442055,-500.0,0.00024109,2]
[329407221,1718321442095,-500.0,0.00024109,2]
[329407222,1718321442115,-500.0,0.00024109,2]
[329407223,1718321442127,-500.0,0.00024109,2]
[329407224,1718321442155,-336.72,0.00024109,2]
[329407225,1718321442175,-940.83,0.00024109,2]
[329407227,1718321442191,-500.0,0.00024109,2]
[329407229,1718321442206,-500.0,0.00024109,2]
[329407231,1718321442240,-513.17,0.00024109,2]
[329407232,1718321442256,-500.0,0.00024109,2]
[329407233,1718321442268,-500.0,0.00024109,2]
[329407234,1718321442297,-500.0,0.00024109,2]
[329407235,1718321442315,-1015.8,0.00024109,2]
[329407236,1718321442326,-500.0,0.00024109,2]
[329407237,1718321442343,-1655.58,0.00024109,2]
[329407238,1718321442354,-500.0,0.00024109,2]
[329407239,1718321442373,-3137.11,0.00024109,2]
[329407240,1718321442390,-1540.6,0.00024109,2]
[329407241,1718321442411,-500.0,0.00024109,2]
[329407242,1718321442422,-500.0,0.00024109,2]
[329407243,1718321442456,-644.62,0.00024109,2]
[329407244,1718321442473,-500.0,0.00024109,2]
[329407245,1718321442504,-500.0,0.00024109,2]
[329407246,1718321442532,-1167.37,0.00024109,2]
[329407247,1718321442581,-923.59,0.00024109,2]
[329407248,1718321442601,-500.0,0.00024109,2]
[329407249,1718321442695,-500.0,0.00024109,2]
[329407250,1718321442732,-500.0,0.00024109,2]
[329407251,1718321442781,-632.13,0.00024109,2]
[329407252,1718321442833,-500.0,0.00024109,2]
[329407253,1718321442881,-982.06,0.00024109,2]
[329407254,1718321442906,-500.0,0.00024109,2]
[329407255,1718321442928,-500.0,0.00024109,2]
[329407256,1718321442953,-500.0,0.00024109,2]
[329407257,1718321442973,-1455.01,0.00024109,2]
[329407258,1718321442989,-500.0,0.00024109,2]
[329407259,1718321443002,-500.0,0.00024109,2]
[329407260,1718321443047,-500.0,0.00024109,2]
[329407261,1718321443092,-500.0,0.00024109,2]
[329407262,1718321443115,-1297.9,0.00024109,2]
[329407263,1718321443141,-5872.73,0.00024109,2]
[329407264,1718321443202,-2836.64,0.00024109,2]
[329407265,1718321443238,-500.0,0.00024109,2]
[329407266,1718321443267,-500.0,0.00024109,2]
[329407267,1718321443298,-1579.61,0.00024109,2]
[329407268,1718321443349,-500.0,0.00024109,2]
[329407269,1718321443373,-704.3,0.00024109,2]
[329407270,1718321443385,-500.0,0.00024109,2]
[329407271,1718321443440,-500.0,0.00024109,2]
[329407272,1718321443472,-1293.68,0.00024109,2]
[329407273,1718321443502,-500.0,0.00024109,2]
[329407274,1718321443531,-6686.79,0.00024109,2]
[329407275,1718321443566,-1058.31,0.00024109,2]
[329407276,1718321443603,-500.0,0.00024109,2]
[329407277,1718321443617,-500.0,0.00024109,2]
[329407278,1718321443636,-1475.63,0.00024109,2]
[329407279,1718321443677,-583.0,0.00024109,2]
[329407280,1718321443736,-1135.21,0.00024109,2]
[329407281,1718321443767,-639.27,0.00024109,2]
[329407282,1718321443781,-672.04,0.00024109,2]
[329407283,1718321443837,-500.0,0.00024109,2]
[329407284,1718321443857,-1575.35,0.00024109,2]
[329407285,1718321443880,-2379.42,0.00024109,2]
[329407286,1718321443892,-1522.06,0.00024109,2]
[329407287,1718321443926,-1374.57,0.00024109,2]
[329407288,1718321443938,-516.68,0.00024109,2]
[329407289,1718321443965,-500.0,0.00024109,2]
[329407290,1718321443978,-500.0,0.00024109,2]
[329407291,1718321443996,-500.0,0.00024109,2]
[329407292,1718321444012,-500.0,0.00024109,2]
[329407293,1718321444025,-500.0,0.00024109,2]
[329407294,1718321444080,-1065.55,0.00024109,2]
[329407295,1718321444146,-3701.46,0.00024109,2]
[329407296,1718321444167,-615.51,0.00024109,2]
[329407297,1718321444205,-1144.27,0.00024109,2]
[329407298,1718321444216,-7546.63,0.00024109,2]
[329407299,1718321444251,-500.0,0.00024109,2]
[329407300,1718321444263,-500.0,0.00024109,2]
[329407301,1718321444276,-1363.55,0.00024109,2]
[329407302,1718321444296,-1385.88,0.00024109,2]
[329407303,1718321444340,-747.92,0.00024109,2]
[329407304,1718321444382,-1354.42,0.00024109,2]
[329407305,1718321444398,-20796.11,0.00024109,2]
[329407306,1718321444430,-1434.61,0.00024109,2]
[329407307,1718321444455,-1011.97,0.00024109,2]
[329407308,1718321444500,-500.0,0.00024109,2]
[329407309,1718321444513,-649.73,0.00024109,2]
[329407310,1718321444564,-905.47,0.00024109,2]
[329407311,1718321444576,-6573.89,0.00024109,2]
[329407312,1718321444633,-1044.18,0.00024109,2]
[329407313,1718321444644,-500.0,0.00024109,2]
[329407314,1718321444665,-1074.82,0.00024109,2]
[329407315,1718321444681,-500.0,0.00024109,2]
[329407316,1718321444704,-1202.59,0.00024109,2]
[329407317,1718321444746,-500.0,0.00024109,2]
[329407318,1718321444762,-1779.34,0.00024109,2]
[329407319,1718321444778,-5444.29,0.00024109,2]
[329407320,1718321444790,-5802.74,0.00024109,2]
[329407321,1718321444808,-500.0,0.00024109,2]